{"text_format":"1","workbook":"xlsx","n_sheets":2,"sheets":["Torpaq Vergisi","bazaa"],"not_rendered":{"charts":0,"images":0,"macros":1,"external_links":0,"defined_names":0,"comments":0,"pivot_tables":0},"unopened":[],"bounds":{"document_bytes":16777216,"sheet_cells":100000,"rows_first":2000,"rows_last":500,"rows_between":2000,"halvings":0,"cell_chars":16384,"cell_head_chars":4096},"cells_cut":0,"cells_raw":0,"read":"whole","date_system":"1900"}

{"sheet":"Torpaq Vergisi","index":0,"n_rows":59,"n_cols":8,"rows_kept":59,"cut":false,"hidden":false,"merged":[[10,3,10,9],[40,14,40,15],[5,14,5,15],[6,14,6,15],[11,3,11,9],[12,3,12,9],[13,3,13,9],[8,3,8,9],[56,14,56,15],[54,3,54,9],[55,3,55,9],[56,3,56,9],[20,3,20,9],[25,3,25,9],[24,3,24,9],[23,3,23,9],[27,3,27,9],[26,3,26,9],[39,2,39,10],[42,3,42,9],[2,14,2,15],[3,14,3,15],[4,14,4,15],[50,3,50,9],[52,3,52,9],[40,2,40,6],[43,3,43,9],[44,3,44,9],[6,2,6,10],[3,3,3,10],[4,3,4,10],[16,3,16,9],[15,3,15,9],[14,3,14,9],[32,3,32,9],[31,3,31,9],[0,1,0,11],[58,2,59,6],[51,3,51,9],[45,3,45,9],[2,3,2,7],[58,7,59,10],[22,3,22,9],[21,3,21,9],[30,3,30,9],[29,3,29,9],[17,3,17,9],[34,3,34,6],[19,3,19,9],[53,3,53,9],[28,3,28,9],[18,3,18,9]]}
[null,"Torpaq vergisinin hesablanması"]
[]
[null,null,null,"Kənd təsərrüfatı torpaqları"]
[null,null,null,"Sənaye, tikinti, nəqliyyat, rabitə, ticarət-məişət xidməti və digər xüsusi təyinatlı torpaqlar"]
[null,null,null,"Yaşayış fondlarının, həyətyanı sahələrin torpaqları və vətəndaşların bağ sahələrinin tutduğu torpaqlar"]
[]
[null,null,"Kənd təsərrüfatı torpaqları"]
[]
[null,null,null,"Təyinatı üzrə istifadə edilən və ya müxtəlif səbəblərdən təyinatı üzrə istifadə edilməsi mümkün olmayan kənd təsərrüfatı torpaqları "]
[null,null,null,"Ərazi:"]
[null,null,null,{"$f":"bazaa!D24","v":""}]
[null,null,null,"Abşeron rayonu, Hacıqabul rayonunun Nəvahi-Atbulaq massivi, Siyəzən və Xızı rayonlarının düzən torpaqları, habelə Bakı və Sumqayıt şəhərlərinin mövcud hüdudundan kənarda olan kənd təsərrüfatı təyinatlı torpaqları"]
[null,null,null,"Xaçmaz rayonu, Şabran, Quba, Qusar və Siyəzən rayonlarının düzən torpaqları"]
[null,null,null,"Balakən, Qax, Zaqatala, Şəki, Oğuz və Qəbələ rayonlarının düzən torpaqları"]
[null,null,null,"Balakən, Qax, Zaqatala, Şəki, Oğuz və Qəbələ rayonlarının dağ torpaqları"]
[null,null,null,"Qusar, Quba, Şabran, Siyəzən və Xızı rayonlarının dağ torpaqları"]
[null,null,null,"Qusar və Quba rayonlarının orta və yüksək dağ torpaqları"]
[null,null,null,"Şamaxı, İsmayıllı rayonları, Ağsu və Göyçay rayonlarının dağ torpaqları"]
[null,null,null,"Qobustan rayonunun dağ torpaqları"]
[null,null,null,"Samux rayonu, Goranboy, Göygöl, Tovuz, Ağstafa, Şəmkir və Qazax rayonlarının düzən torpaqları, habelə Gəncə və Naftalan şəhərlərinin mövcud hüdudundan kənarda olan kənd təsərrüfatı təyinatlı torpaqları"]
[null,null,null,"Bərdə, Ağcabədi, Beyləqan, Tərtər rayonları, Ağdam, keçmiş Ağdərə rayonunun ərazisi və Xocavəndin düzən torpaqları"]
[null,null,null,"Füzuli, Zəngilan və Cəbrayıl rayonlarının düzən torpaqları"]
[null,null,null,"Gədəbəy, Daşkəsən rayonu, Goranboy, Göygöl, Şəmkir, Tovuz, Ağstafa və Qazax rayonlarının dağ torpaqları"]
[null,null,null,"Kəlbəcər, Laçın, Qubadlı rayonları və Zəngilan rayonunun dağ torpaqları"]
[null,null,null,"Şuşa, Xocalı rayonları, Xocavənd, keçmiş Ağdərə rayonunun ərazisi, habelə Ağdam, Füzuli, Cəbrayıl rayonlarının dağ torpaqları"]
[null,null,null,"Salyan, Saatlı, Sabirabad, İmişli, Neftçala və Biləsuvar rayonları, Hacıqabulun Kür qırağı düzən hissəsi, habelə Şirvan şəhərinin mövcud hüdudundan kənarda olan kənd təsərrüfatı təyinatlı torpaqları"]
[null,null,null,"Kürdəmir, Zərdab, Ucar, Yevlax, Ağdaş rayonları, Ağsu, Göyçay rayonlarının düzən torpaqları və Mingəçevir şəhərinin mövcud hüququndan kənarda olan kənd təsərrüfatı təyinatlı torpaqları"]
[null,null,null,"Lənkəran, Masallı və Astara rayonlarının düzən torpaqları"]
[null,null,null,"Cəlilabad rayonunun düzən torpaqları"]
[null,null,null,"Cəlilabad rayonunun dağ torpaqları"]
[null,null,null,"Lerik, Yardımlı rayonları, Masallı, Lənkəran və Astara rayonlarının dağ torpaqları"]
[null,null,null,"Şərur, Sədərək, Babək, Ordubad və Culfa rayonlarının düzən torpaqları"]
[null,null,null,"Şahbuz rayonu, Şərur, Sədərək, Babək, Ordubad, Culfa rayonlarının dağ torpaqları"]
[]
[null,null,null,"Torpaq sahəsi biçənək, örüş və ya otlaqdır"]
[null,null,null,null,null,null,"Keyfiyyət qrupu:"]
[]
[null,null,null,null,null,null,"Torpağın sahəsi (ha):"]
[]
[null,null,{"$f":"bazaa!F28","v":""}]
[null,null,"Torpağın yerləşdiyi ərazi:"]
[]
[null,null,null,"Bakı şəhəri, habelə onun qəsəbə və kəndləri"]
[null,null,null,"Gəncə, Sumqayıt, Xırdalan şəhərləri və Abşeron rayonunun qəsəbə və kəndləri"]
[null,null,null,"Digər şəhərlər və rayon mərkəzləri"]
[null,null,null,"Rayon tabeliyində olan şəhərlər, qəsəbələr və kəndlər"]
[]
[null,null,null,null,null,null,"Torpağın sahəsi (m2):"]
[]
[null,null,"Güzəşt tətbiq edilən şəxslər:"]
[null,null,null,"Azərbaycan Respublikasının Milli Qəhrəmanı"]
[null,null,null,"Sovet İttifaqı və Sosialist Əməyi Qəhrəmanı"]
[null,null,null,"Müharibə əlilli"]
[null,null,null,"Həlak olmuş, yaxud sonralar vəfat etmiş döyüşçünün dul arvadı (əri)"]
[null,null,null,"1941—1945-ci illərdə arxa cəbhədə fədakar əməyinə görə orden və medallarla təltif edilmiş şəxs"]
[null,null,null,"Qanunvericiliklə müəyyən edilmiş qaydada müharibə veteranı adı almış şəxs"]
[null,null,null,"Çernobıl AES-də, digər atom obyektlərində radiasiya qəzası nəticəsində şüa xəstəliyinə tutulmuş şəxs"]
[]
[null,null,"Torpaq vergisinin məbləği:",null,null,null,null,{"$f":"bazaa!U2","v":""}]

{"sheet":"bazaa","index":1,"n_rows":35,"n_cols":21,"rows_kept":35,"cut":false,"hidden":true,"merged":[[1,17,2,17],[2,15,3,15],[4,15,5,15],[2,16,3,16],[4,16,5,16],[29,6,29,7],[29,8,29,9],[2,12,3,12],[2,13,3,13],[4,12,5,12],[4,13,5,13]]}
[null,1,true,"I",null,null,"I","II","III","IV","V",null,null,"Torpaq sahesi","Serti bal","Guzest","Vergi","Son"]
[null,null,null,"II","Label 23","Abşeron rayonu, Hacıqabul rayonunun Nəvahi-Atbulaq massivi, Siyəzən və Xızı rayonlarının düzən torpaqları, habelə Bakı və Sumqayıt şəhərlərinin mövcud hüdudundan kənarda olan kənd təsərrüfatı təyinatlı torpaqları",85,70,60,25,0,null,"KT",{"$f":"IF(B1=1,IF(A9,IF(OR(IFERROR('Torpaq Vergisi'!H38/2,\"\")=\"\",'Torpaq Vergisi'!H38<0,'Torpaq Vergisi'!H38=\"\"),\"\",'Torpaq Vergisi'!H38),IF(OR(IFERROR('Torpaq Vergisi'!H48/2,\"\")=\"\",'Torpaq Vergisi'!H48<0,'Torpaq Vergisi'!H48=\"\"),\"\",'Torpaq Vergisi'!H48)),\"\")","v":""},{"$f":"IF(B1=1,IF(A9,IF(A1,IFERROR(0.06*INDEX(G2:K23,MATCH(D23,E2:E23,0),1)/10,\"\"),IFERROR(0.06*INDEX(G2:K23,MATCH(D23,E2:E23,0),MATCH('Torpaq Vergisi'!H36,G1:K1,0)),\"\")),0.02),\"\")","v":0.02},{"$f":"IF(COUNTIF($A$2:$A$8,$C$1)>0,IF(N2*O2<10,N2*O2,10),0)","v":0},{"$f":"IFERROR(ROUND((N2*O2-P2),2),\"\")","v":""},{"$f":"IF(Q2=\"\",IF(Q3=\"\",IF(Q5=\"\",\"\",Q5),Q3),Q2)","v":""},{"$f":"INT(R2)","v":{"$error":"#VALUE!"}},{"$f":"S2&\" manat\"","v":{"$error":"#VALUE!"}},{"$f":"IF(R2=\"\",\"\",IF(S3=0,T2,IF(S2=0,T3,T2&\"  \"&T3)))","v":""}]
[null,null,null,"III","Label 22","Xaçmaz rayonu, Şabran, Quba, Qusar və Siyəzən rayonlarının düzən torpaqları",121,89,57,35,0,null,"Senaye",{"$f":"IF(B1=2,IF(OR(IFERROR('Torpaq Vergisi'!H48/2,\"\")=\"\",'Torpaq Vergisi'!H48<0,'Torpaq Vergisi'!H48=\"\"),\"\",'Torpaq Vergisi'!H48),\"\")","v":""},{"$f":"IF(N3=\"\",\"\",IF(AND(N3>=0,N3<=10000),N3,10000)*VLOOKUP(B3,$E$32:$J$35,3,0))","v":""},{"$f":"IF(COUNTIF($A$2:$A$8,$C$1)>0,IF(O3+O4<10,O3+O4,10),0)","v":0},{"$f":"IFERROR(ROUND((O3+O4-P3),2),\"\")","v":""},null,{"$f":"ROUND(R2*100,0)-ROUND(S2*100,0)","v":{"$error":"#VALUE!"}},{"$f":"S3&\" qəpik\"","v":{"$error":"#VALUE!"}}]
[null,null,null,"IV","Label 21","Balakən, Qax, Zaqatala, Şəki, Oğuz və Qəbələ rayonlarının düzən torpaqları",180,115,50,15,0,null,null,null,{"$f":"IF(N3=\"\",\"\",IF(AND(N3>=0,N3<=10000),0,(N3-10000)*VLOOKUP(B3,$E$32:$J$35,4,0)))","v":""}]
[null,null,null,"V","Label 20","Balakən, Qax, Zaqatala, Şəki, Oğuz və Qəbələ rayonlarının dağ torpaqları",200,150,90,25,0,null,"Yasayis",{"$f":"IF(B1=3,IF(OR(IFERROR('Torpaq Vergisi'!H48/2,\"\")=\"\",'Torpaq Vergisi'!H48<0,'Torpaq Vergisi'!H48=\"\"),\"\",'Torpaq Vergisi'!H48),\"\")","v":""},{"$f":"IF(N5=\"\",\"\",IF(AND(N5>=0,N5<=10000),N5,10000)*VLOOKUP(B3,$E$32:$J$35,5,0))","v":""},{"$f":"IF(COUNTIF($A$2:$A$8,$C$1)>0,IF(O5+O6<10,O5+O6,10),0)","v":0},{"$f":"IFERROR(ROUND((O5+O6-P5),2),\"\")","v":""}]
[null,null,null,null,"Label 19","Qusar, Quba, Şabran, Siyəzən və Xızı rayonlarının dağ torpaqları",40,20,10,5,0,null,null,null,{"$f":"IF(N5=\"\",\"\",IF(AND(N5>=0,N5<=10000),0,(N5-10000)*VLOOKUP(B3,$E$32:$J$35,6,0)))","v":""}]
[null,null,null,null,"Label 18","Qusar və Quba rayonlarının orta və yüksək dağ torpaqları",38,24,23,8,0]
[null,null,null,null,"Label 17","Şamaxı, İsmayıllı rayonları, Ağsu və Göyçay rayonlarının dağ torpaqları",66,50,33,19,0]
[null,null,null,null,"Label 16","Qobustan rayonunun dağ torpaqları",58,44,29,16,0]
[null,null,null,null,"Label 15","Samux rayonu, Goranboy, Göygöl, Tovuz, Ağstafa, Şəmkir və Qazax rayonlarının düzən torpaqları, habelə Gəncə və Naftalan şəhərlərinin mövcud hüdudundan kənarda olan kənd təsərrüfatı təyinatlı torpaqları",60,45,38,26,0]
[null,null,null,null,"Label 14","Bərdə, Ağcabədi, Beyləqan, Tərtər rayonları, Ağdam, keçmiş Ağdərə rayonunun ərazisi və Xocavəndin düzən torpaqları",127,102,80,45,0]
[null,null,null,null,"Label 13","Füzuli, Zəngilan və Cəbrayıl rayonlarının düzən torpaqları",56,41,37,20,0]
[null,null,null,null,"Label 12","Gədəbəy, Daşkəsən rayonu, Goranboy, Göygöl, Şəmkir, Tovuz, Ağstafa və Qazax rayonlarının dağ torpaqları",42,35,26,16,0]
[null,null,null,null,"Label 11","Kəlbəcər, Laçın, Qubadlı rayonları və Zəngilan rayonunun dağ torpaqları",29,23,17,11,0]
[null,null,null,null,"Label 10","Şuşa, Xocalı rayonları, Xocavənd, keçmiş Ağdərə rayonunun ərazisi, habelə Ağdam, Füzuli, Cəbrayıl rayonlarının dağ torpaqları",42,30,27,20,0]
[null,null,null,null,"Label 9","Salyan, Saatlı, Sabirabad, İmişli, Neftçala və Biləsuvar rayonları, Hacıqabulun Kür qırağı düzən hissəsi, habelə Şirvan şəhərinin mövcud hüdudundan kənarda olan kənd təsərrüfatı təyinatlı torpaqları",98,92,75,33,0]
[null,null,null,null,"Label 8","Kürdəmir, Zərdab, Ucar, Yevlax, Ağdaş rayonları, Ağsu, Göyçay rayonlarının düzən torpaqları və Mingəçevir şəhərinin mövcud hüququndan kənarda olan kənd təsərrüfatı təyinatlı torpaqları",84,75,65,30,0]
[null,null,null,null,"Label 7","Lənkəran, Masallı və Astara rayonlarının düzən torpaqları",125,117,92,50,0]
[null,null,null,null,"Label 6","Cəlilabad rayonunun düzən torpaqları",73,59,47,0,0]
[null,null,null,null,"Label 5","Cəlilabad rayonunun dağ torpaqları",60,48,58,0,0]
[null,null,null,null,"Label 4","Lerik, Yardımlı rayonları, Masallı, Lənkəran və Astara rayonlarının dağ torpaqları",35,24,18,0,0]
[null,null,null,null,"Label 3","Şərur, Sədərək, Babək, Ordubad və Culfa rayonlarının düzən torpaqları",53,40,31,20,0]
[null,null,null,null,"Label 2","Şahbuz rayonu, Şərur, Sədərək, Babək, Ordubad, Culfa rayonlarının dağ torpaqları",24,18,12,8,0]
[null,null,null,{"$f":"IFERROR(VLOOKUP(D23,E2:F23,2,0),\"\")","v":""}]
[]
[null,null,null,null,null,"Sənaye, tikinti, nəqliyyat, rabitə, ticarət-məişət xidməti və digər xüsusi təyinatlı torpaqlar"]
[null,null,null,null,null,"Yaşayış fondlarının, həyətyanı sahələrin torpaqları və vətəndaşların bağ sahələrinin tutduğu torpaqlar"]
[null,null,null,null,null,{"$f":"IF(B1=2,F26,IF(B1=3,F27,\"\"))","v":""}]
[]
[null,null,null,null,null,null,"Senaye",null,"Yasayis"]
[null,null,null,null,null,null,10000,">10000",10000,">10000"]
[null,null,null,null,1,"Bakı şəhəri, habelə onun qəsəbə və kəndləri",0.1,0.2,6.0000000000000001E-3,1.2E-2]
[null,null,null,null,2,"Gəncə, Sumqayıt, Xırdalan şəhərləri və Abşeron rayonunun qəsəbə və kəndləri",0.08,0.16,5.0000000000000001E-3,0.01]
[null,null,null,null,3,"Digər şəhərlər və rayon mərkəzləri",0.04,0.08,3.0000000000000001E-3,6.0000000000000001E-3]
[null,null,null,null,4,"Rayon tabeliyində olan şəhərlər, qəsəbələr və kəndlər",0.02,0.04,1E-3,2E-3]